fUST/lending_fUST_20250516
["ID","MTS","AMOUNT","RATE_DAILY","PERIOD"]
[361192389,1747330234863,-350.0,0.00013835,2]
[361192390,1747330234874,-450.0,0.00013835,2]
[361192391,1747330234885,-450.0,0.00013835,2]
[361192392,1747330234895,-450.0,0.00013835,2]
[361192393,1747330234906,-450.0,0.00013835,2]
[361192394,1747330234918,-293.71,0.00013835,2]
[361192395,1747330234929,-350.0,0.00013835,2]
[361192396,1747330234939,-450.0,0.00013835,2]
[361192397,1747330234948,-350.0,0.00013835,2]
[361192398,1747330234958,-450.0,0.00013835,2]
[361192399,1747330234969,-450.0,0.00013835,2]
[361192400,1747330234978,-450.0,0.00013835,2]
[361192401,1747330234989,-350.0,0.00013835,2]
[361192402,1747330234999,-321.05,0.00013835,2]
[361192403,1747330235009,-450.0,0.00013835,2]
[361192404,1747330235019,-450.0,0.00013835,2]
[361192405,1747330235028,-450.0,0.00013835,2]
[361192406,1747330235038,-485.77,0.00013835,2]
[361192407,1747330235048,-350.0,0.00013835,2]
[361192408,1747330235058,-350.0,0.00013835,2]
[361192409,1747330235067,-450.0,0.00013835,2]
[361192410,1747330235077,-450.0,0.00013835,2]
[361192411,1747330235087,-450.0,0.00013835,2]
[361192412,1747330235097,-450.0,0.00013835,2]
[361192413,1747330235107,-450.0,0.00013835,2]
[361192414,1747330235116,-450.0,0.00013835,2]
[361192415,1747330235126,-350.0,0.00013835,2]
[361192416,1747330235136,-350.0,0.00013835,2]
[361192417,1747330235146,-450.0,0.00013835,2]
[361192418,1747330235156,-450.0,0.00013835,2]
[361192419,1747330235165,-482.34,0.00013835,2]
[361192420,1747330235175,-350.0,0.00013835,2]
[361192421,1747330235184,-450.0,0.00013835,2]
[361192422,1747330235193,-450.0,0.00013835,2]
[361192423,1747330235203,-450.0,0.00013835,2]
[361192424,1747330235212,-350.0,0.00013835,2]
[361192425,1747330235223,-450.0,0.00013835,2]
[361192426,1747330235232,-450.0,0.00013835,2]
[361192427,1747330235242,-350.0,0.00013835,2]
[361192428,1747330235251,-832.82,0.00013835,2]
[361192429,1747330235260,-350.0,0.00013835,2]
[361192430,1747330235269,-450.0,0.00013835,2]
[361192431,1747330235279,-450.0,0.00013835,2]
[361192432,1747330235288,-350.0,0.00013835,2]
[361192433,1747330235297,-450.0,0.00013835,2]
[361192434,1747330235307,-450.0,0.00013835,2]
[361192435,1747330235316,-290.13597168,0.00013835,2]
[361192436,1747330235325,-450.0,0.00013835,2]
[361192437,1747330235335,-450.0,0.00013835,2]
[361192438,1747330235344,-382.41731209,0.00013835,2]
[361192439,1747330235353,-450.0,0.00013835,2]
[361192440,1747330235363,-1095.21,0.00013835,2]
[361192441,1747330235373,-450.0,0.00013835,2]
[361192442,1747330235382,-450.0,0.00013835,2]
[361192443,1747330235391,-350.0,0.00013835,2]
[361192444,1747330235400,-450.0,0.00013835,2]
[361192445,1747330235409,-350.0,0.00013835,2]
[361192446,1747330235419,-450.0,0.00013835,2]
[361192447,1747330235428,-450.0,0.00013835,2]
[361192448,1747330235438,-1994.57,0.00013835,2]
[361192449,1747330235447,-1223.03,0.00013835,2]
[361192450,1747330235457,-450.0,0.00013835,2]
[361192451,1747330235466,-380.06,0.00013835,2]
[361192452,1747330235476,-350.0,0.00013835,2]
[361192453,1747330235486,-450.0,0.00013835,2]
[361192454,1747330235495,-450.0,0.00013835,2]
[361192455,1747330235504,-450.0,0.00013835,2]
[361192456,1747330235514,-310.21,0.00013835,2]
[361192457,1747330235523,-450.0,0.00013835,2]
[361192458,1747330235533,-450.0,0.00013835,2]
[361192459,1747330235542,-511.79,0.00013835,2]
[361192460,1747330235552,-450.0,0.00013835,2]
[361192461,1747330235561,-450.0,0.00013835,2]
[361192462,1747330235571,-450.0,0.00013835,2]
[361192463,1747330235580,-350.0,0.00013835,2]
[361192464,1747330235589,-450.0,0.00013835,2]
[361192465,1747330235598,-450.0,0.00013835,2]
[361192466,1747330235608,-450.0,0.00013835,2]
[361192467,1747330235618,-450.0,0.00013835,2]
[361192468,1747330235628,-450.0,0.00013835,2]
[361192469,1747330235637,-450.0,0.00013835,2]
[361192470,1747330235646,-350.0,0.00013835,2]
[361192471,1747330235656,-500.0,0.00013905,2]
[361192472,1747330235665,-500.0,0.00013905,2]
[361192473,1747330235676,-530.30274619,0.00013905,2]
[361192474,1747330235686,-500.0,0.00013905,2]
[361192475,1747330235695,-249.74186584,0.00013905,2]
[361192476,1747330235705,-500.0,0.00013905,2]
[361192477,1747330235714,-500.0,0.00013905,2]
[361192478,1747330235725,-500.0,0.00013905,2]
[361192479,1747330235735,-500.0,0.00013905,2]
[361192480,1747330235745,-500.0,0.00013905,2]
[361192481,1747330235754,-637.42406042,0.00013906,2]
[361192482,1747330235764,-546.8002127,0.00013931,2]
[361192483,1747330235773,-300.0,0.00013972,2]
[361192484,1747330235782,-300.0,0.00013972,2]
[361192485,1747330235792,-549.69,0.00013972,2]
[361192486,1747330235801,-450.0,0.00013972,2]
[361192487,1747330235810,-300.0,0.00013972,2]
[361192488,1747330235820,-300.0,0.00013972,2]
[361192489,1747330235832,-450.0,0.00013972,2]
[361192490,1747330235843,-185.27,0.00013972,2]
[361192491,1747330235853,-450.0,0.00013972,2]
[361192492,1747330235863,-450.0,0.00013972,2]
[361192493,1747330235873,-450.0,0.00013972,2]
[361192494,1747330235883,-300.0,0.00013972,2]
[361192495,1747330235893,-450.0,0.00013972,2]
[361192496,1747330235903,-300.0,0.00013972,2]
[361192497,1747330235913,-300.0,0.00013972,2]
[361192498,1747330235923,-300.0,0.00013972,2]
[361192499,1747330235933,-450.0,0.00013972,2]
[361192500,1747330235943,-300.0,0.00013972,2]
[361192501,1747330235953,-450.0,0.00013972,2]
[361192502,1747330235963,-450.0,0.00013972,2]
[361192503,1747330235973,-450.0,0.00013972,2]
[361192504,1747330235982,-450.0,0.00013972,2]
[361192505,1747330235991,-450.0,0.00013972,2]
[361192506,1747330236002,-450.0,0.00013972,2]
[361192507,1747330236011,-298.08189558,0.00013972,2]
[361192508,1747330236021,-450.0,0.00013972,2]
[361192509,1747330236031,-450.0,0.00013972,2]
[361192510,1747330236041,-450.0,0.00013972,2]
[361192511,1747330236051,-300.0,0.00013972,2]
[361192512,1747330236060,-450.0,0.00013972,2]
[361192513,1747330236069,-450.0,0.00013972,2]
[361192514,1747330236079,-300.0,0.00013972,2]
[361192515,1747330236088,-450.0,0.00013972,2]
[361192516,1747330236098,-450.0,0.00013972,2]
[361192517,1747330236108,-431.88,0.00013972,2]
[361192518,1747330236117,-450.0,0.00013972,2]
[361192519,1747330236127,-945.82,0.00013972,2]
[361192520,1747330236137,-450.0,0.00013972,2]
[361192521,1747330236147,-450.0,0.00013972,2]
[361192522,1747330236156,-2129.1,0.00013972,2]
[361192523,1747330236166,-450.0,0.00013972,2]
[361192524,1747330236175,-450.0,0.00013972,2]
[361192525,1747330236185,-450.0,0.00013972,2]
[361192526,1747330236195,-450.0,0.00013972,2]
[361192527,1747330236204,-450.0,0.00013972,2]
[361192528,1747330236213,-450.0,0.00013972,2]
[361192529,1747330236223,-450.0,0.00013972,2]
[361192530,1747330236233,-450.0,0.00013972,2]
[361192531,1747330236243,-417.62719358,0.00013972,2]
[361192532,1747330236253,-300.0,0.00013972,2]
[361192533,1747330236263,-450.0,0.00013972,2]
[361192534,1747330236380,-450.0,0.00013972,2]
[361192535,1747330236390,-450.0,0.00013972,2]
[361192536,1747330236399,-450.0,0.00013972,2]
[361192537,1747330236409,-450.0,0.00013972,2]
[361192538,1747330236419,-450.0,0.00013972,2]
[361192539,1747330236429,-450.0,0.00013972,2]
[361192540,1747330236439,-450.0,0.00013972,2]
[361192541,1747330236448,-450.0,0.00013972,2]
[361192542,1747330236461,-450.0,0.00013972,2]
[361192543,1747330236470,-450.0,0.00013972,2]
[361192544,1747330236480,-300.0,0.00013972,2]
[361192545,1747330236490,-437.34,0.00013972,2]
[361192546,1747330236499,-338.23,0.00013972,2]
[361192547,1747330236509,-450.0,0.00013972,2]
[361192548,1747330236519,-450.0,0.00013972,2]
[361192549,1747330236529,-450.0,0.00013972,2]
[361192550,1747330236539,-350.0,0.00013972,2]
[361192551,1747330236548,-450.0,0.00013972,2]
[361192552,1747330236558,-450.0,0.00013972,2]
[361192553,1747330236568,-450.0,0.00013972,2]
[361192554,1747330236578,-450.0,0.00013972,2]
[361192555,1747330236588,-415.75,0.00013972,2]
[361192556,1747330236598,-461.89,0.00013972,2]
[361192557,1747330236608,-450.0,0.00013972,2]
[361192558,1747330236617,-450.0,0.00013972,2]
[361192559,1747330236627,-395.24,0.00013972,2]
[361192560,1747330236637,-300.0,0.00013972,2]
[361192561,1747330236647,-832.82,0.00013972,2]
[361192562,1747330236656,-450.0,0.00013972,2]
[361192563,1747330236666,-339.62,0.00013972,2]
[361192564,1747330236676,-450.0,0.00013972,2]
[361192565,1747330236685,-383.98,0.00013972,2]
[361192566,1747330236695,-450.0,0.00013972,2]
[361192567,1747330236704,-450.0,0.00013972,2]
[361192568,1747330236714,-1095.21,0.00013972,2]
[361192569,1747330236726,-450.0,0.00013972,2]
[361192570,1747330236736,-450.0,0.00013972,2]
[361192571,1747330236746,-450.0,0.00013972,2]
[361192572,1747330236755,-450.0,0.00013972,2]
[361192573,1747330236765,-253.66,0.00013972,2]
[361192574,1747330236775,-1994.57,0.00013972,2]
[361192575,1747330236784,-1223.03,0.00013972,2]
[361192576,1747330236796,-503.98,0.00013972,2]
[361192577,1747330236805,-450.0,0.00013972,2]
[361192578,1747330236815,-450.0,0.00013972,2]
[361192579,1747330236825,-450.0,0.00013972,2]
[361192580,1747330236839,-450.0,0.00013972,2]
[361192581,1747330236849,-450.0,0.00013972,2]
[361192582,1747330236858,-450.0,0.00013972,2]
[361192583,1747330236868,-450.0,0.00013972,2]
[361192584,1747330236878,-450.0,0.00013972,2]
[361192585,1747330236888,-450.0,0.00013972,2]
[361192586,1747330236897,-574.88,0.00013972,2]
[361192587,1747330236907,-154.65,0.00013972,2]
[361192588,1747330236919,-450.0,0.00013972,2]
[361192589,1747330236930,-345.55,0.00013972,2]
[361192590,1747330236941,-219.215,0.00013973,2]
[361192591,1747330236951,-500.0,0.00013973,2]
[361192592,1747330236960,-500.0,0.00013973,2]
[361192593,1747330236970,-500.0,0.00013973,2]
[361192594,1747330236980,-24900.0,0.00013974,2]
[361192595,1747330236990,-450.0,0.00014109,2]
[361192596,1747330236999,-450.0,0.00014109,2]
[361192597,1747330237009,-450.0,0.00014109,2]
[361192598,1747330237019,-450.0,0.00014109,2]
[361192599,1747330237028,-356.89,0.00014109,2]
[361192600,1747330237038,-450.0,0.00014109,2]
[361192601,1747330237047,-274.29,0.00014109,2]
[361192602,1747330237056,-450.0,0.00014109,2]
[361192603,1747330237066,-450.0,0.00014109,2]
[361192604,1747330237075,-450.0,0.00014109,2]
[361192605,1747330237084,-450.0,0.00014109,2]
[361192606,1747330237094,-450.0,0.00014109,2]
[361192607,1747330237103,-450.0,0.00014109,2]
[361192608,1747330237112,-251.44848117,0.00014109,2]
[361192609,1747330237122,-450.0,0.00014109,2]
[361192610,1747330237131,-450.0,0.00014109,2]
[361192611,1747330237141,-450.0,0.00014109,2]
[361192612,1747330237150,-450.0,0.00014109,2]
[361192613,1747330237159,-450.0,0.00014109,2]
[361192614,1747330237169,-252.7980028,0.00014109,2]
[361192615,1747330237178,-450.0,0.00014109,2]
[361192616,1747330237188,-945.82,0.00014109,2]
[361192617,1747330237198,-252.57964765,0.00014109,2]
[361192618,1747330237207,-450.0,0.00014109,2]
[361192619,1747330237217,-2129.1,0.00014109,2]
[361192620,1747330237226,-450.0,0.00014109,2]
[361192621,1747330237236,-450.0,0.00014109,2]
[361192622,1747330237245,-450.0,0.00014109,2]
[361192623,1747330237255,-300.0,0.00014109,2]
[361192624,1747330237265,-450.0,0.00014109,2]
[361192625,1747330237274,-254.02,0.00014109,2]
[361192626,1747330237284,-450.0,0.00014109,2]
[361192627,1747330237293,-450.0,0.00014109,2]
[361192628,1747330237302,-450.0,0.00014109,2]
[361192629,1747330237311,-450.0,0.00014109,2]
[361192630,1747330237321,-450.0,0.00014109,2]
[361192631,1747330237330,-455.98,0.00014109,2]
[361192632,1747330237340,-300.0,0.00014109,2]
[361192633,1747330237350,-450.0,0.00014109,2]
[361192634,1747330237360,-450.0,0.00014109,2]
[361192635,1747330237371,-450.0,0.00014109,2]
[361192636,1747330237381,-370.73,0.00014109,2]
[361192637,1747330237391,-450.0,0.00014109,2]
[361192638,1747330237400,-295.8,0.00014109,2]
[361192639,1747330237410,-450.0,0.00014109,2]
[361192640,1747330237420,-450.0,0.00014109,2]
[361192641,1747330237430,-346.05,0.00014109,2]
[361192642,1747330237440,-450.0,0.00014109,2]
[361192643,1747330237449,-450.0,0.00014109,2]
[361192644,1747330237459,-450.0,0.00014109,2]
[361192645,1747330237469,-450.0,0.00014109,2]
[361192646,1747330237479,-450.0,0.00014109,2]
[361192647,1747330237489,-832.82,0.00014109,2]
[361192648,1747330237499,-450.0,0.00014109,2]
[361192649,1747330237512,-450.0,0.00014109,2]
[361192650,1747330237523,-450.0,0.00014109,2]
[361192651,1747330237533,-491.26,0.00014109,2]
[361192652,1747330237542,-1095.21,0.00014109,2]
[361192654,1747330237552,-450.0,0.00014109,2]
[361192656,1747330237562,-450.0,0.00014109,2]
[361192657,1747330237571,-450.0,0.00014109,2]
[361192658,1747330237581,-450.0,0.00014109,2]
[361192659,1747330237591,-1994.57,0.00014109,2]
[361192660,1747330237600,-1223.03,0.00014109,2]
[361192661,1747330237610,-450.0,0.00014109,2]
[361192662,1747330237619,-450.0,0.00014109,2]
[361192663,1747330237629,-450.0,0.00014109,2]
[361192664,1747330237639,-450.0,0.00014109,2]
[361192665,1747330237648,-450.0,0.00014109,2]
[361192666,1747330237658,-450.0,0.00014109,2]
[361192667,1747330237668,-450.0,0.00014109,2]
[361192668,1747330237678,-450.0,0.00014109,2]
[361192669,1747330237692,-273.36629789,0.00014109,2]
[361192684,1747330238130,-402.0,0.00013698,2]
[361192686,1747330238139,-500.0,0.00013905,2]
[361192688,1747330238149,-500.0,0.00013905,2]
[361192690,1747330238159,-176.63370211,0.00014109,2]
[361192692,1747330238168,-209.07427212,0.00014109,2]
[361192694,1747330238178,-271.59712,0.00014194,2]
[361192696,1747330238187,-637.42406042,0.00014215,2]
[361192698,1747330238197,-450.0,0.00014246,2]
[361192701,1747330238207,-352.94,0.00014246,2]
[361192704,1747330238217,-152.52,0.00014246,2]
[361192706,1747330238227,-450.0,0.00014246,2]
[361192710,1747330238239,-243.3,0.00014246,2]
[361192712,1747330238248,-262.06,0.00014246,2]
[361192714,1747330238258,-172.8,0.00014246,2]
[361192716,1747330238267,-450.0,0.00014246,2]
[361192718,1747330238277,-450.0,0.00014246,2]
[361192720,1747330238286,-450.0,0.00014246,2]
[361192722,1747330238295,-408.48765325,0.00014246,2]
[361192725,1747330238307,-41.51234675,0.00014246,2]
[361192727,1747330238316,-450.0,0.00014246,2]
[361192729,1747330238326,-450.0,0.00014246,2]
[361192731,1747330238335,-369.35,0.00014246,2]
[361192733,1747330238344,-35.47373835,0.00014246,2]
[361192735,1747330238355,-275.8890125,0.00014246,2]
[361192737,1747330238365,-399.68,0.00014246,2]
[361192739,1747330238375,-450.0,0.00014246,2]
[361192741,1747330238384,-2129.1,0.00014246,2]
[361192743,1747330238393,-545.63566517,0.00014246,2]
[361192745,1747330238403,-450.0,0.00014246,2]
[361192747,1747330238412,-450.0,0.00014246,2]
[361192749,1747330238421,-450.0,0.00014246,2]
[361192751,1747330238430,-450.0,0.00014246,2]
[361192753,1747330238439,-234.1,0.00014246,2]
[361192755,1747330238448,-450.0,0.00014246,2]
[361192757,1747330238457,-230.5086953,0.00014246,2]
[361192760,1747330238481,-216.25,0.00012329,2]
[361192762,1747330238490,-400.0,0.00013698,2]
[361192764,1747330238499,-354.7213047,0.00014246,2]
[361192766,1747330238508,-450.0,0.00014246,2]
[361192768,1747330238518,-450.0,0.00014246,2]
[361192770,1747330238526,-154.02,0.00014246,2]
[361192772,1747330238536,-450.0,0.00014246,2]
[361192774,1747330238546,-450.0,0.00014246,2]
[361192776,1747330238555,-450.0,0.00014246,2]
[361192778,1747330238565,-450.0,0.00014246,2]
[361192780,1747330238574,-450.0,0.00014246,2]
[361192782,1747330238583,-450.0,0.00014246,2]
[361192784,1747330238592,-574.85,0.00014246,2]
[361192786,1747330238603,-450.0,0.00014246,2]
[361192788,1747330238612,-450.0,0.00014246,2]
[361192790,1747330238621,-832.82,0.00014246,2]
[361192792,1747330238631,-450.0,0.00014246,2]
[361192794,1747330238640,-450.0,0.00014246,2]
[361192796,1747330238650,-450.0,0.00014246,2]
[361192798,1747330238659,-1095.21,0.00014246,2]
[361192810,1747330238668,-450.0,0.00014246,2]
[361192813,1747330238778,-267.72,0.00014246,2]
[361192815,1747330238787,-275.91,0.00014246,2]
[361192817,1747330238796,-450.0,0.00014246,2]
[361192819,1747330238805,-1994.57,0.00014246,2]
[361192821,1747330238814,-1223.03,0.00014246,2]
[361192823,1747330238824,-450.0,0.00014246,2]
[361192825,1747330238835,-450.0,0.00014246,2]
[361192827,1747330238844,-450.0,0.00014246,2]
[361192829,1747330238853,-450.0,0.00014246,2]
[361192831,1747330238863,-450.0,0.00014246,2]
[361192833,1747330238872,-450.0,0.00014246,2]
[361192835,1747330238883,-508.93,0.00014246,2]
[361192836,1747330238892,-450.0,0.00014246,2]
[361192838,1747330238901,-450.0,0.00014246,2]
[361192840,1747330238911,-450.0,0.00014383,2]
[361192842,1747330238920,-450.0,0.00014383,2]
[361192844,1747330238929,-450.0,0.00014383,2]
[361192846,1747330238938,-450.0,0.00014383,2]
[361192848,1747330238947,-450.0,0.00014383,2]
[361192851,1747330238957,-450.0,0.00014383,2]
[361192853,1747330238966,-450.0,0.00014383,2]
[361192855,1747330238977,-450.0,0.00014383,2]
[361192857,1747330238987,-450.0,0.00014383,2]
[361192859,1747330238997,-2129.1,0.00014383,2]
[361192860,1747330239006,-450.0,0.00014383,2]
[361192863,1747330239016,-450.0,0.00014383,2]
[361192865,1747330239025,-450.0,0.00014383,2]
[361192867,1747330239034,-450.0,0.00014383,2]
[361192869,1747330239043,-450.0,0.00014383,2]
[361192871,1747330239053,-522.02,0.00014383,2]
[361192873,1747330239063,-450.0,0.00014383,2]
[361192875,1747330239073,-205.98,0.00014383,2]
[361192877,1747330239082,-450.0,0.00014383,2]
[361192879,1747330239092,-450.0,0.00014383,2]
[361192881,1747330239101,-450.0,0.00014383,2]
[361192883,1747330239110,-450.0,0.00014383,2]
[361192885,1747330239120,-408.67,0.00014383,2]
[361192887,1747330239129,-495.56,0.00014383,2]
[361192889,1747330239138,-450.0,0.00014383,2]
[361192891,1747330239147,-832.82,0.00014383,2]
[361192893,1747330239157,-450.0,0.00014383,2]
[361192895,1747330239166,-450.0,0.00014383,2]
[361192897,1747330239175,-450.0,0.00014383,2]
[361192899,1747330239184,-1095.21,0.00014383,2]
[361192901,1747330239194,-196.74,0.00014383,2]
[361192903,1747330239203,-450.0,0.00014383,2]
[361192905,1747330239212,-1994.57,0.00014383,2]
[361192907,1747330239223,-1223.03,0.00014383,2]
[361192909,1747330239233,-450.0,0.00014383,2]
[361192911,1747330239242,-450.0,0.00014383,2]
[361192913,1747330239252,-450.0,0.00014383,2]
[361192915,1747330239261,-450.0,0.00014383,2]
[361192917,1747330239270,-450.0,0.00014383,2]
[361192919,1747330239283,-450.0,0.00014383,2]
[361192921,1747330239293,-450.0,0.00014383,2]
[361192923,1747330239303,-234.56,0.0001452,2]
[361192925,1747330239312,-450.0,0.0001452,2]
[361192927,1747330239321,-450.0,0.0001452,2]
[361192929,1747330239331,-450.0,0.0001452,2]
[361192931,1747330239340,-152.67,0.0001452,2]
[361192933,1747330239349,-450.0,0.0001452,2]
[361192935,1747330239358,-450.0,0.0001452,2]
[361192937,1747330239368,-450.0,0.0001452,2]
[361192939,1747330239377,-182.15,0.0001452,2]
[361192941,1747330239386,-1107.60946376,0.0001452,2]
[361193060,1747330240377,-0.01165269,0.00013561,2]
[361193283,1747330243257,-1047.39457714,0.00013561,2]
[361193408,1747330246324,-3952.59377017,0.00013561,2]
[361193410,1747330246334,-450.0,0.00013698,2]
[361193412,1747330246343,-450.0,0.00013698,2]
[361193413,1747330246352,-450.0,0.00013698,2]
[361193415,1747330246362,-450.0,0.00013698,2]
[361193417,1747330246371,-400.0,0.00013698,2]
[361193419,1747330246381,-450.0,0.00013698,2]
[361193421,1747330246391,-450.0,0.00013698,2]
[361193423,1747330246400,-450.0,0.00013835,2]
[361193425,1747330246409,-350.0,0.00013835,2]
[361193427,1747330246419,-437.83,0.00013835,2]
[361193429,1747330246428,-450.0,0.00013835,2]
[361193431,1747330246438,-450.0,0.00013835,2]
[361193433,1747330246448,-458.85883292,0.00013835,2]
[361193435,1747330246457,-190.84,0.00013972,2]
[361193437,1747330246467,-450.0,0.00013972,2]
[361193439,1747330246478,-450.0,0.00013972,2]
[361193441,1747330246487,-450.0,0.00014109,2]
[361193443,1747330246496,-484.19,0.00014246,2]
[361193445,1747330246506,-1021.49053624,0.0001452,2]
[361193447,1747330246515,-450.0,0.0001452,2]
[361193449,1747330246526,-450.0,0.0001452,2]
[361193451,1747330246535,-450.0,0.0001452,2]
[361193453,1747330246545,-450.0,0.0001452,2]
[361193454,1747330246555,-459.47,0.0001452,2]
[361193456,1747330246564,-450.0,0.0001452,2]
[361193458,1747330246573,-325.36,0.0001452,2]
[361193460,1747330246583,-450.0,0.0001452,2]
[361193462,1747330246592,-450.0,0.0001452,2]
[361193464,1747330246601,-450.0,0.0001452,2]
[361193466,1747330246611,-450.0,0.0001452,2]
[361193468,1747330246620,-832.82,0.0001452,2]
[361193470,1747330246629,-450.0,0.0001452,2]
[361193472,1747330246638,-450.0,0.0001452,2]
[361193474,1747330246648,-450.0,0.0001452,2]
[361193476,1747330246657,-1095.21,0.0001452,2]
[361193478,1747330246666,-150.94,0.0001452,2]
[361193480,1747330246675,-1994.57,0.0001452,2]
[361193482,1747330246685,-1223.03,0.0001452,2]
[361193484,1747330246695,-450.0,0.0001452,2]
[361193486,1747330246704,-450.0,0.0001452,2]
[361193488,1747330246714,-450.0,0.0001452,2]
[361193489,1747330246723,-450.0,0.0001452,2]
[361193490,1747330246735,-450.0,0.0001452,2]
[361193491,1747330246744,-207.85,0.0001452,2]
[361193492,1747330246755,-450.0,0.0001452,2]
[361193494,1747330246764,-637.42406042,0.00014523,2]
[361193496,1747330246774,-652.61296533,0.00014532,2]
[361193498,1747330246783,-450.0,0.00014657,2]
[361193500,1747330246792,-338.6,0.00014657,2]
[361193502,1747330246802,-293.73,0.00014657,2]
[361193504,1747330246812,-450.0,0.00014657,2]
[361193506,1747330246821,-450.0,0.00014657,2]
[361193508,1747330246832,-450.0,0.00014657,2]
[361193510,1747330246842,-2129.1,0.00014657,2]
[361193512,1747330246852,-450.0,0.00014657,2]
[361193514,1747330246861,-450.0,0.00014657,2]
[361193516,1747330246871,-450.0,0.00014657,2]
[361193517,1747330246881,-450.0,0.00014657,2]
[361193520,1747330246890,-450.0,0.00014657,2]
[361193521,1747330246899,-565.71,0.00014657,2]
[361193523,1747330246909,-450.0,0.00014657,2]
[361193525,1747330246919,-450.0,0.00014657,2]
[361193527,1747330246928,-227.84400591,0.00014657,2]
[361193529,1747330246938,-832.82,0.00014657,2]
[361193531,1747330246947,-518.54564432,0.00014657,2]
[361193533,1747330246956,-536.68,0.00014657,2]
[361193535,1747330246965,-450.0,0.00014657,2]
[361193537,1747330246974,-1095.21,0.00014657,2]
[361193539,1747330246985,-1994.57,0.00014657,2]
[361193541,1747330246995,-1223.03,0.00014657,2]
[361193542,1747330247004,-450.0,0.00014657,2]
[361193544,1747330247015,-450.0,0.00014657,2]
[361193546,1747330247025,-450.0,0.00014657,2]
[361193548,1747330247034,-450.0,0.00014657,2]
[361193550,1747330247043,-450.0,0.00014657,2]
[361193552,1747330247053,-450.0,0.00014657,2]
[361193554,1747330247062,-153.0,0.00014685,2]
[361193556,1747330247072,-153.0,0.00014685,2]
[361193558,1747330247081,-408.64021423,0.00014711,2]
[361193560,1747330247090,-153.0,0.00014778,2]
[361193562,1747330247099,-249.96,0.00014794,2]
[361193564,1747330247108,-450.0,0.00014794,2]
[361193566,1747330247117,-450.0,0.00014794,2]
[361193568,1747330247126,-582.09,0.00014794,2]
[361193570,1747330247136,-2129.1,0.00014794,2]
[361193572,1747330247145,-512.9,0.00014794,2]
[361193582,1747330247262,-450.0,0.00014794,2]
[361193583,1747330247272,-450.0,0.00014794,2]
[361193584,1747330247281,-450.0,0.00014794,2]
[361193585,1747330247291,-450.0,0.00014794,2]
[361193586,1747330247300,-450.0,0.00014794,2]
[361193587,1747330247309,-450.0,0.00014794,2]
[361193588,1747330247318,-832.82,0.00014794,2]
[361193589,1747330247327,-326.26,0.00014794,2]
[361193590,1747330247336,-1095.21,0.00014794,2]
[361193591,1747330247346,-1994.57,0.00014794,2]
[361193592,1747330247355,-1223.03,0.00014794,2]